bitfinex/quotes_ETHUSD_20241023
["timestamp","ask_amount","ask_price","bid_price","bid_amount"]
[1729648708271,0.04175937,2623.7,2623.6,0.79511164]
[1729648708639,0.7664,2623.8,2623.6,0.79511164]
[1729648709082,0.04175885,2623.7,2623.6,0.79511164]
[1729648709376,0.7664,2623.8,2623.6,0.79511164]
[1729648709544,0.04175893,2623.7,2623.6,0.79511164]
[1729648709748,0.7664,2623.8,2623.6,0.79511164]
[1729648709945,0.04175893,2623.7,2623.6,0.79511164]
[1729648710171,0.7664,2623.8,2623.6,0.79511164]
[1729648710357,0.04175893,2623.7,2623.6,0.79511164]
[1729648710558,0.7664,2623.8,2623.6,0.79511164]
[1729648710762,0.04175893,2623.7,2623.6,0.79511164]
[1729648711073,0.7664,2623.8,2623.6,0.79511164]
[1729648711481,0.041759,2623.7,2623.6,0.79511164]
[1729648715394,0.041759,2623.7,2623.5,4.22563164]
[1729648715897,0.041759,2623.7,2623.6,0.79511164]
[1729648716194,0.041759,2623.7,2623.5,4.22563164]
[1729648735602,0.041759,2623.7,2623.6,4.22551164]
[1729648735931,1.6736008,2623.9,2623.6,4.22551164]
[1729648736137,0.04042793,2623.7,2623.6,4.22551164]
[1729648736891,1.6736008,2623.9,2623.6,4.22551164]
[1729648737522,0.04042821,2623.8,2623.6,4.22551164]
[1729648740788,0.04042821,2623.8,2623.6,0.79511164]
[1729648741129,1.6736008,2623.7,2623.6,0.79511164]
[1729648741504,0.04042793,2623.7,2623.6,0.79511164]
[1729648741828,1.6736008,2623.9,2623.6,0.79511164]
[1729648742030,0.04042793,2623.7,2623.6,1.62661164]
[1729648742231,1.6736008,2623.9,2623.6,1.62661164]
[1729648742405,0.7553,2624.0,2623.7,3.43025]
[1729648742602,1.6736008,2624.1,2623.7,3.43015]
[1729648742802,1.6736008,2624.1,2623.8,3.43007]
[1729648742997,1.6736008,2624.0,2623.8,3.43007]
[1729648743196,1.6736008,2624.1,2623.8,3.43007]
[1729648743595,1.6736008,2624.1,2623.8,4.22620848]
[1729648743939,1.6736008,2624.1,2623.9,1.62763848]
[1729648744514,0.7553,2624.2,2623.9,1.62763848]
[1729648744709,2.4289008,2624.2,2623.9,5.05761848]
[1729648744956,1.6736008,2624.1,2623.9,1.62763848]
[1729648745915,0.7553,2624.2,2623.9,1.62763848]
[1729648746252,1.6736008,2624.1,2623.9,6.0257751]
[1729648747262,1.6736008,2624.2,2624.0,0.79613848]
[1729648747424,3.42938,2624.4,2624.0,0.79613848]
[1729648747425,1.6736008,2624.1,2624.0,0.79613848]
[1729648748728,1.6736008,2624.2,2624.0,0.79613848]
[1729648748973,1.6736008,2624.1,2624.0,0.79613848]
[1729648750643,1.6736008,2624.1,2623.9,6.0258151]
[1729648750644,1.71403454,2624.1,2623.9,6.0258151]
[1729648754774,1.71403454,2624.1,2623.9,9.4557451]
[1729648755071,1.71403454,2624.1,2624.0,3.42987]
[1729648760076,1.71403454,2624.1,2623.9,6.0258351]
[1729648762476,1.6736008,2624.0,2623.9,6.0258351]
[1729648762696,1.71403454,2624.1,2623.9,6.0258351]
[1729648762901,0.03912804,2624.0,2623.9,5.05763848]
[1729648763909,1.6736008,2624.1,2623.9,4.2615]
[1729648764100,0.03912848,2624.0,2623.9,4.2615]
[1729648765703,0.03912848,2624.0,2623.8,4.22625848]
[1729648766666,1.71272928,2624.0,2623.8,4.22625848]
[1729648767769,1.71272928,2624.0,2623.8,0.79613848]
[1729648768166,1.71272928,2624.0,2623.8,4.22624848]
[1729648768365,1.71272928,2624.0,2623.8,0.79613848]
[1729648772006,1.71272928,2624.0,2623.8,4.22626848]
[1729648773285,1.6736008,2623.9,2623.8,4.22626848]
[1729648773615,1.71272928,2624.0,2623.8,4.22626848]
[1729648774282,0.03912848,2624.0,2623.8,4.22626848]
[1729648774481,1.6736008,2623.9,2623.8,0.79613848]
[1729648774683,1.6736008,2624.0,2623.7,5.00219848]
[1729648775411,0.03922413,2623.9,2623.8,0.79613848]
[1729648776318,0.03922413,2623.9,2623.8,4.22626848]
[1729648782606,0.03922413,2623.9,2623.8,3.43013]
[1729648783938,0.03922413,2623.9,2623.7,1.97000772]
[1729648784336,0.03922413,2623.9,2623.7,5.40025772]
[1729648784637,0.03922413,2623.9,2623.8,1.19420772]
[1729648786141,0.03922413,2623.9,2623.8,0.7959034]
[1729648786506,0.03922413,2623.9,2623.7,5.40025772]
[1729648786706,0.03922413,2623.9,2623.8,0.79590745]
[1729648786906,0.03922413,2623.9,2623.7,5.40025772]
[1729648787605,0.03922413,2623.9,2623.8,1.19420772]
[1729648788557,1.6736008,2624.0,2623.8,4.62433772]
[1729648788721,1.6736008,2624.0,2623.9,0.79582895]
[1729648795609,1.7115278,2624.0,2623.9,0.79582895]
[1729648795812,1.7115278,2624.0,2623.8,4.22595895]
[1729648795813,2.5057278,2624.0,2623.8,4.22595895]
[1729648796352,2.5057278,2624.0,2623.9,0.79582895]
[1729648796558,2.5057278,2624.0,2623.8,0.79582895]
[1729648796756,2.5057278,2624.0,2623.9,0.79582895]
[1729648796926,2.5057278,2624.0,2623.8,0.79582895]
[1729648797952,1.6736008,2623.9,2623.8,0.79582895]
[1729648798319,2.50568166,2623.9,2623.8,0.79582895]
[1729648799024,2.50568166,2623.9,2623.7,0.79582895]
[1729648799357,4.26210086,2623.9,2623.6,0.79582895]
[1729648799946,0.7942,2623.8,2623.6,0.79582895]
[1729648800235,1.6736008,2623.7,2623.6,0.78062895]
[1729648801574,1.6736008,2623.7,2623.3,5.02306696]
[1729648801575,5.1038708,2623.7,2623.4,1.19420772]
[1729648801754,1.6736008,2623.5,2623.4,1.19420772]
[1729648801958,1.6736008,2623.5,2623.3,1.19420772]
[1729648802353,1.6736008,2623.5,2623.3,4.62499772]
[1729648803178,1.6736008,2623.5,2623.3,1.19420772]
[1729648803484,0.7942,2623.2,2622.9,1.19420772]
[1729648803784,1.6736008,2623.0,2622.9,1.19420772]
[1729648805281,1.6736008,2623.0,2622.7,1.19420772]
[1729648805448,1.6736008,2622.8,2622.7,1.19420772]
[1729648806066,2.4533008,2622.8,2622.7,1.19420772]
[1729648809046,2.4533008,2623.1,2622.7,1.19420772]
[1729648809246,0.7797,2623.1,2622.7,1.19420772]
[1729648810489,1.6736008,2623.2,2622.8,3.43144]
[1729648810647,1.6736008,2623.1,2622.8,3.43144]
[1729648811465,1.6736008,2623.1,2622.7,4.62566772]
[1729648812485,1.6736008,2623.2,2622.7,5.74985065]
[1729648812653,1.6736008,2623.1,2622.8,3.43144]
[1729648815193,1.6736008,2623.0,2622.8,3.43144]
[1729648815699,4.21049,2623.3,2622.8,3.43144]
[1729648815700,1.6736008,2623.1,2622.8,3.43144]
[1729648816702,1.6736008,2622.9,2622.7,1.04792847]
[1729648816904,1.6736008,2622.8,2622.6,4.26126]
[1729648817195,1.6736008,2622.7,2622.6,0.8296]
[1729648817402,1.6736008,2622.8,2622.6,0.8296]
[1729648817574,1.6736008,2622.7,2622.6,0.8296]
[1729648817781,0.03683302,2622.7,2622.6,0.8296]
[1729648818087,1.6736008,2622.8,2622.6,0.8296]
[1729648818400,1.71045898,2622.7,2622.4,4.26154]
[1729648818916,1.6736008,2622.6,2622.2,7.69387]
[1729648819060,1.71045877,2622.6,2622.2,4.26173]
[1729648819514,1.6736008,2622.5,2622.2,4.26173]
[1729648819802,1.71045877,2622.6,2622.3,3.43208]
[1729648820005,0.03685749,2622.4,2622.3,3.43208]
[1729648820199,1.6736008,2622.6,2622.3,3.43208]
[1729648820360,0.03685749,2622.4,2622.3,3.43208]
[1729648820564,1.6736008,2622.6,2622.3,3.43208]
[1729648820820,0.03685749,2622.4,2622.3,3.43208]
[1729648821102,5.8848708,2622.7,2622.3,3.43208]
[1729648821695,0.03685805,2622.6,2622.3,3.43208]
[1729648821864,1.71045885,2622.6,2622.3,3.43208]
[1729648822063,0.03685805,2622.6,2622.3,3.43201]
[1729648825375,1.71045885,2622.6,2622.3,3.43201]
[1729648826533,0.03685805,2622.6,2622.3,3.43201]
[1729648828270,1.71045885,2622.6,2622.3,6.86404]
[1729648828509,0.03685805,2622.6,2622.3,3.43201]
[1729648828697,0.03685805,2622.6,2622.3,3.43088097]
[1729648830071,0.03685805,2622.6,2622.3,6.86291097]
[1729648830488,0.03685805,2622.6,2622.3,3.43088097]
[1729648834691,0.03685805,2622.6,2622.3,6.86291097]
[1729648836216,0.03685805,2622.6,2622.5,3.43183]
[1729648836421,0.03685805,2622.6,2622.5,4.21893]
[1729648836592,1.6736008,2622.8,2622.5,4.21893]
[1729648836920,1.6736008,2622.9,2622.5,4.21893]
[1729648837125,0.03661885,2622.7,2622.5,4.21893]
[1729648837286,1.6736008,2622.9,2622.5,4.21893]
[1729648837486,0.03661857,2622.6,2622.5,4.21893]
[1729648837797,1.6736008,2622.8,2622.5,4.21893]
[1729648838006,0.03661857,2622.6,2622.5,4.21893]
[1729648838221,1.6736008,2622.9,2622.5,4.21887]
[1729648838422,0.03661857,2622.6,2622.5,4.21887]
[1729648838595,1.6736008,2622.9,2622.5,4.21887]
[1729648838797,0.03661857,2622.6,2622.5,4.21887]
[1729648839019,1.6736008,2622.9,2622.5,4.21887]
[1729648839191,0.03661857,2622.6,2622.5,4.21887]
[1729648839391,1.6736008,2622.9,2622.5,4.21887]
[1729648839925,0.03661913,2622.8,2622.5,4.21887]
[1729648840914,0.03661913,2622.8,2622.5,7.65062]
[1729648841393,0.03661913,2622.8,2622.5,4.21885]
[1729648844047,0.03661913,2622.8,2622.5,3.43175]
[1729648844831,1.6736008,2622.7,2622.5,3.43175]
[1729648845232,0.80003911,2622.6,2622.4,3.43196]
[1729648846528,0.80003911,2622.6,2622.3,4.22589088]
[1729648847114,2.47363991,2622.6,2622.2,4.22613088]
[1729648848139,1.6736008,2622.5,2622.2,4.22613088]
[1729648848508,1.6736008,2622.5,2622.3,0.79390088]
[1729648848509,0.03663855,2622.4,2622.3,0.79390088]
[1729648849015,1.6736008,2622.5,2622.3,0.79390088]
[1729648849208,0.03663855,2622.4,2622.2,4.22610088]
[1729648849403,2.4370008,2622.3,2622.2,0.79390088]
[1729648849657,0.7634,2622.3,2622.1,0.79390088]
[1729648849947,0.80003827,2622.3,2622.1,0.79390088]
[1729648850520,2.47363907,2622.3,2622.1,0.79390088]
[1729648850911,1.6736008,2622.2,2622.1,0.79390088]
[1729648851115,2.47363907,2622.3,2622.1,0.79390088]
[1729648851358,1.71013187,2622.2,2622.0,0.79390088]
[1729648851563,1.6736008,2622.1,2621.9,0.79390088]
[1729648851852,0.03649479,2622.0,2621.8,0.79390088]
[1729648852472,0.03649479,2622.0,2621.7,4.22668088]
[1729648852664,1.71009559,2622.0,2621.7,4.22668088]
[1729648853100,0.03649479,2622.0,2621.7,4.22668088]
[1729648854469,0.03649479,2622.0,2621.9,4.22652088]
[1729648854765,0.7666,2622.7,2622.2,3.43214]
[1729648855070,0.7666,2622.7,2622.3,3.43209]
[1729648855373,1.6736008,2622.6,2622.3,3.43209]
[1729648855665,1.6736008,2622.5,2622.2,7.659897]
[1729648855851,1.6736008,2622.5,2622.2,4.227737]
[1729648857248,1.6736008,2622.5,2622.2,7.659897]
[1729648857733,1.6736008,2622.5,2622.2,4.227737]
[1729648859177,4.19817,2622.7,2622.2,4.227737]
[1729648859178,1.6736008,2622.6,2622.2,4.227737]
[1729648859392,0.7666,2622.7,2622.2,5.11309025]
[1729648859679,1.6736008,2622.6,2622.3,4.227687]
[1729648860035,1.6736008,2622.6,2622.3,4.988987]
[1729648860270,2.4402008,2622.7,2622.4,3.43196]
[1729648860646,0.7666,2622.9,2622.5,3.43177]
[1729648860847,1.6736008,2622.6,2622.5,0.795597]
[1729648861144,1.6736008,2622.6,2622.4,5.27753158]
[1729648861338,0.7666,2622.9,2622.4,5.27745158]
[1729648861534,0.7666,2622.9,2622.4,4.227477]
[1729648861847,1.6736008,2622.7,2622.4,4.227477]
[1729648862448,1.6736008,2622.7,2622.4,7.659367]
[1729648862870,2.4402008,2622.9,2622.5,3.43182]
[1729648863080,3.43127,2623.0,2622.6,3.43165]
[1729648863081,1.6736008,2623.0,2622.6,3.43165]
[1729648863374,0.7666,2623.1,2622.6,4.227247]
[1729648863375,1.6736008,2622.9,2622.6,4.227247]
[1729648863675,0.7666,2623.3,2622.8,3.43137]
[1729648863877,1.6736008,2623.1,2622.8,4.226967]
[1729648864036,1.6736008,2623.1,2622.8,3.43137]
[1729648864446,1.6736008,2623.1,2622.8,4.226967]
[1729648865235,1.6736008,2623.1,2622.8,3.43137]
[1729648865764,0.7666,2623.3,2622.8,3.43136]
[1729648865968,1.6736008,2623.3,2622.9,3.43123]
[1729648866342,1.6736008,2623.3,2622.8,5.10863178]
[1729648866772,1.6736008,2623.3,2622.9,3.43124]
[1729648866938,4.22311,2623.5,2622.9,3.43124]
[1729648866939,1.6736008,2623.2,2622.9,3.43124]
[1729648867236,1.6736008,2623.2,2622.9,3.4313]
[1729648867441,1.6736008,2623.3,2622.9,3.4313]
[1729648867657,1.6736008,2623.2,2622.9,3.4313]
[1729648869195,1.6736008,2623.2,2623.0,3.43116]
[1729648869471,0.03657953,2623.1,2623.0,3.43116]
[1729648869675,1.6736008,2623.3,2623.0,3.43116]
[1729648869877,0.03657981,2623.2,2623.0,3.43116]
[1729648870043,1.6736008,2623.3,2623.0,3.43116]
[1729648870244,1.71018061,2623.2,2623.1,0.8299]
[1729648870954,1.71018061,2623.2,2622.9,0.8299]
[1729648871377,1.6736008,2623.1,2622.9,0.8299]
[1729648871677,0.03657925,2623.0,2622.9,4.26118]
[1729648871877,1.6736008,2623.2,2622.9,4.26118]
[1729648873085,1.6736008,2623.1,2622.9,0.8299]
[1729648873270,1.6736008,2623.0,2622.9,0.8299]
[1729648873441,1.6736008,2623.0,2622.9,3.43131]
[1729648873442,0.03657925,2623.0,2622.9,3.43131]
[1729648874682,1.6736008,2623.1,2622.9,3.43131]
[1729648874981,0.03657925,2623.0,2622.9,3.43131]
[1729648876584,1.6736008,2623.2,2622.9,3.43131]
[1729648876585,1.6736008,2623.1,2622.9,3.43131]
[1729648876787,0.03675268,2623.0,2622.9,3.43131]
[1729648879290,1.6736008,2623.1,2622.9,3.43131]
[1729648879493,0.03675268,2623.0,2622.9,3.43131]
[1729648879853,0.03675268,2623.0,2622.8,6.86272]
[1729648880075,0.03675268,2623.0,2622.8,3.43136]
[1729648880282,1.71035348,2623.0,2622.8,3.43136]
[1729648880555,1.71035348,2623.0,2622.8,6.86274]
[1729648880759,1.71035348,2623.0,2622.8,6.86271]
[1729648880975,0.03675268,2623.0,2622.8,6.86271]
[1729648881161,0.03675268,2623.0,2622.8,3.43135]
[1729648881363,0.03675268,2623.0,2622.9,3.43131]
[1729648888672,0.03637143,2623.0,2622.9,3.43131]
[1729648890912,1.70997223,2623.0,2622.9,3.43131]
[1729648891217,0.03637143,2623.0,2622.9,3.43131]
[1729648893081,1.6736008,2623.2,2623.0,3.43108]
[1729648893298,1.70992151,2623.1,2623.0,3.43108]
[1729648893916,1.70992151,2623.1,2622.9,3.43131]
[1729648894284,1.6736008,2623.0,2622.9,3.43131]
[1729648894497,1.70992123,2623.0,2622.9,3.43131]
[1729648895195,0.03632043,2623.0,2622.9,3.43131]
[1729648897375,0.03632043,2623.0,2622.9,4.200575]
[1729648897918,1.6736008,2623.1,2622.9,4.200575]
[1729648898099,1.6736008,2623.1,2622.9,3.43131]
[1729648902381,1.6736008,2623.1,2622.9,4.226907]
[1729648903723,1.6736008,2623.1,2623.0,3.43118]
[1729648904019,1.70988578,2623.1,2623.0,3.43118]
[1729648905320,1.70988578,2623.1,2623.0,4.226777]
[1729648905679,1.70988578,2623.1,2623.0,0.795597]
[1729648908521,1.70988578,2623.1,2622.9,4.6246755]
[1729648908925,1.70988578,2623.1,2623.0,0.79586244]
[1729648909150,1.70988578,2623.1,2622.9,4.6246755]
[1729648910010,1.70988578,2623.1,2623.0,1.1933955]
[1729648910787,1.70988578,2623.1,2622.9,4.6246755]
[1729648911713,1.70988578,2623.1,2623.0,1.1933955]
[1729648911982,1.70988578,2623.1,2623.0,0.79607056]
[1729648914610,1.70988578,2623.1,2623.0,0.7960718]
[1729648916138,1.70988578,2623.1,2622.9,4.6246955]
[1729648916525,1.70988578,2623.1,2623.0,0.79608861]
[1729648916726,1.70988578,2623.1,2622.9,4.6246955]
[1729648917204,1.70988578,2623.1,2623.0,0.79611633]
[1729648917641,0.03628498,2623.1,2622.9,1.1933955]
[1729648917840,0.03628498,2623.1,2623.0,5.64515521]
[1729648917997,1.6736008,2623.3,2623.0,5.64515521]
[1729648918203,1.6736008,2623.3,2623.2,0.7959735]
[1729648919929,1.6736008,2623.3,2623.1,0.7959735]
[1729648920336,1.6736008,2623.3,2623.2,0.7959735]
[1729648921050,5.1044008,2623.3,2623.1,0.7959735]
[1729648921343,3.43092,2623.2,2623.1,0.7959735]
[1729648921512,5.1044008,2623.3,2623.1,0.7959735]
[1729648922112,1.6736008,2623.2,2623.1,0.7959735]
[1729648922804,5.1045208,2623.2,2623.1,0.7959735]
[1729648923037,1.6736008,2623.2,2623.1,0.7959735]
[1729648923414,2.5017008,2623.2,2623.1,0.7959735]
[1729648923947,5.9326208,2623.2,2623.0,0.7959735]
[1729648924107,1.6736008,2623.1,2623.0,0.7959735]
[1729648925606,1.6736008,2623.1,2623.0,1.19396025]
[1729648925934,1.6736008,2623.1,2622.9,1.19396025]
[1729648926139,1.6736008,2623.0,2622.9,1.19396025]
[1729648929505,1.7099453,2623.0,2622.9,1.19396025]
[1729648932339,1.7099453,2623.0,2622.8,5.02362696]
[1729648932651,1.6736008,2622.9,2622.8,5.02362696]
[1729648932858,1.6736008,2622.9,2622.8,5.3080763]
[1729648934754,1.6736008,2623.1,2623.0,4.18829]
[1729648934937,1.6736008,2623.1,2623.0,5.3826919]
[1729648935825,1.70985901,2623.1,2623.0,5.3826919]
[1729648936023,0.03625821,2623.1,2623.0,5.3826919]
[1729648936336,1.6736008,2623.5,2623.2,3.43092]
[1729648936522,0.7566,2623.7,2623.2,3.43092]
[1729648936523,0.7566,2623.7,2623.4,4.22666234]
[1729648936726,1.6736008,2623.7,2623.5,0.79602234]
[1729648937058,4.18648,2624.0,2623.6,4.2261018]
[1729648937059,0.7566,2624.0,2623.6,4.2261018]
[1729648937239,1.6736008,2623.7,2623.6,4.2261018]
[1729648937442,1.6736008,2623.7,2623.6,3.43039]
[1729648937749,1.6736008,2623.7,2623.5,4.2262218]
[1729648937920,1.6736008,2623.6,2623.5,4.2262218]
[1729648938714,1.6736008,2623.7,2623.6,3.43038]
[1729648942457,1.6736008,2623.8,2623.6,3.43038]
[1729648942657,1.6736008,2623.9,2623.7,3.43027]
[1729648943357,1.6736008,2623.9,2623.6,4.19448]
[1729648943743,1.6736008,2623.8,2623.6,4.19448]
[1729648943927,1.6736008,2623.7,2623.4,4.9903718]
[1729648944241,3.43001,2623.9,2623.5,3.43053]
[1729648944242,1.6736008,2623.6,2623.5,3.43053]
[1729648944428,1.70892738,2623.6,2623.5,3.43053]
[1729648944756,0.03532658,2623.6,2623.5,3.43053]
[1729648945414,1.70892738,2623.6,2623.5,3.43053]
[1729648945739,0.03532658,2623.6,2623.5,3.43053]
[1729648946742,0.03532658,2623.6,2623.5,5.03672018]
[1729648946952,0.03532658,2623.6,2623.5,9.78654174]
[1729648947251,1.6736008,2624.2,2624.0,4.19396]
[1729648947458,1.6736008,2624.3,2624.0,4.1939]
[1729648947641,1.6736008,2624.2,2624.0,4.1939]
[1729648949453,1.6736008,2624.3,2624.0,7.6237]
[1729648949655,1.6736008,2624.3,2624.0,4.1939]
[1729648951019,1.6736008,2624.2,2624.0,4.1939]
[1729648951222,1.6736008,2624.1,2623.8,3.43004]
[1729648951527,1.6736008,2624.0,2623.7,4.19436]
[1729648951842,1.6736008,2624.1,2623.7,4.19436]
[1729648952231,1.6736008,2624.1,2623.8,3.43013]
[1729648954860,1.6736008,2624.0,2623.8,3.43013]
[1729648955725,1.6736008,2624.1,2623.8,3.43013]
[1729648956350,1.6736008,2623.9,2623.4,5.01286751]
[1729648956550,2.5016008,2623.8,2623.4,4.21948]
[1729648956753,0.828,2624.3,2623.6,6.86067]
[1729648956965,4.25761,2624.3,2623.6,6.86067]
[1729648957160,0.828,2624.3,2623.6,6.86067]
[1729648957366,1.6736008,2624.0,2623.6,6.86061]
[1729648957571,1.6736008,2624.0,2623.6,3.43029]
[1729648957727,1.6736008,2624.0,2623.6,6.86061]
[1729648957940,1.6736008,2623.9,2623.6,3.43029]
[1729648958137,1.6736008,2624.0,2623.6,3.43029]
[1729648958628,1.6736008,2623.9,2623.6,3.43029]
[1729648959432,0.03485303,2623.8,2623.6,3.43029]
[1729648960289,1.6736008,2624.0,2623.6,3.43029]
[1729648960443,1.6736008,2624.1,2623.7,4.21909]
[1729648960768,1.6736008,2624.0,2623.8,3.43012]
[1729648961075,1.6736008,2624.1,2623.8,3.43012]
[1729648961725,1.6736008,2624.0,2623.8,3.43012]
[1729648963361,1.6736008,2624.0,2623.7,0.7889]
[1729648963575,1.6736008,2623.9,2623.7,0.7889]
[1729648963734,1.6736008,2623.9,2623.6,3.43027]
[1729648964595,1.6736008,2624.0,2623.6,6.86059]
[1729648966151,1.6736008,2623.9,2623.6,3.43027]
[1729648967777,1.6736008,2624.0,2623.6,3.43027]
[1729648968151,1.6736008,2623.9,2623.6,3.43027]
[1729648968688,1.6736008,2624.0,2623.7,3.43025]
[1729648969718,1.6736008,2624.0,2623.8,3.43011]
[1729648969874,2.5016008,2624.5,2624.0,6.85955]
[1729648970080,2.5016008,2624.5,2624.0,7.64845]
[1729648970281,1.6736008,2624.4,2624.0,4.21867]
[1729648970702,1.6736008,2624.4,2624.0,7.64848]
[1729648971398,1.6736008,2624.3,2624.0,4.21867]
[1729648971714,1.6736008,2624.3,2624.0,7.64845]
[1729648971913,1.6736008,2624.3,2624.0,8.50025574]
[1729648972120,1.6736008,2624.3,2624.1,3.42973]
[1729648972279,1.6736008,2624.4,2624.0,8.50026574]
[1729648972473,1.6736008,2624.4,2624.0,8.50027574]
[1729648972707,1.6736008,2624.3,2624.0,5.07047574]
[1729648974631,0.03372967,2624.2,2624.0,5.07047574]
[1729648974920,1.6736008,2624.3,2624.1,0.50704757]
[1729648977726,1.6736008,2624.4,2624.1,0.50704757]
[1729648978333,1.6736008,2624.3,2624.1,0.50704757]
[1729648979942,1.6736008,2624.4,2624.1,0.50704757]
[1729648980124,1.6736008,2624.3,2624.0,4.21867]
[1729648980511,1.6736008,2624.2,2624.0,4.21867]
[1729648980700,1.6736008,2624.2,2623.9,3.42994]
[1729648981239,1.6736008,2624.2,2623.8,1.58078751]
[1729648981240,1.6736008,2624.0,2623.8,0.7874]
[1729648981436,1.6736008,2624.0,2623.7,4.22362751]
[1729648981603,1.6736008,2624.0,2623.7,1.97120647]
[1729648981798,1.70755903,2623.9,2623.7,0.79338751]
[1729648982002,0.03395823,2623.9,2623.6,5.01107751]
[1729648982309,1.6736008,2623.9,2623.7,0.79338751]
[1729648982514,0.03395795,2623.8,2623.7,3.43026]
[1729648982821,5.8656508,2624.1,2623.7,4.22364751]
[1729648983028,0.03395795,2623.8,2623.7,4.22364751]
[1729648983349,2.4359008,2624.1,2623.7,4.44890596]
[1729648983497,0.03395795,2623.8,2623.7,4.44890596]
[1729648983695,1.6736008,2624.0,2623.7,4.44890596]
[1729648984226,0.03395823,2623.9,2623.7,4.44890596]
[1729648985144,0.03395823,2623.9,2623.7,5.24229347]
[1729648985518,0.03395823,2623.9,2623.7,4.44890596]
[1729648987314,0.03395823,2623.9,2623.7,5.24229347]
[1729648987710,1.6736008,2623.8,2623.6,4.22367751]
[1729648987904,0.03395809,2623.8,2623.6,0.79338751]
[1729648988116,1.70755889,2623.8,2623.6,0.79338751]
[1729648988321,1.70755889,2623.8,2623.5,4.77888838]
[1729648988859,2.51815889,2623.8,2623.5,1.34842838]
[1729648989419,2.51815889,2623.8,2623.6,0.79338751]
[1729648989853,2.51815889,2623.8,2623.5,4.77887838]
[1729648990621,2.51815889,2623.8,2623.6,0.79338751]
[1729648991023,2.51815889,2623.8,2623.5,4.77887838]
[1729648991234,2.51815889,2623.8,2623.6,0.79338751]
[1729648992120,0.84455809,2623.8,2623.6,0.79338751]
[1729648992321,0.84455809,2623.8,2623.6,4.22372751]
[1729648993427,0.84455809,2623.8,2623.6,6.86068]
[1729648993624,0.84455809,2623.8,2623.6,7.65406751]
[1729648993869,0.03395809,2623.8,2623.6,9.11769727]
[1729648994070,2.4842008,2624.0,2623.6,9.11769727]
[1729648994240,0.03375389,2623.7,2623.6,5.68735727]
[1729648994419,2.4842008,2624.0,2623.6,5.68735727]
[1729648994639,0.03375445,2623.9,2623.6,5.68735727]
[1729648995672,0.03375445,2623.9,2623.7,3.43021]
[1729648995888,0.03375445,2623.9,2623.7,7.65375751]
[1729648996246,0.03375445,2623.9,2623.7,4.22354751]
[1729648996741,0.03375445,2623.9,2623.8,3.43013]
[1729648997192,1.6736008,2624.1,2623.8,3.43013]
[1729648997359,0.03372911,2623.9,2623.8,3.43013]
[1729648997564,1.6736008,2624.1,2623.8,3.43013]
[1729648997745,0.03372911,2623.9,2623.8,3.43013]
[1729648997954,1.6736008,2624.1,2623.8,3.43013]
[1729648998463,0.03372939,2624.0,2623.8,3.43013]
[1729649000891,2.4842008,2624.2,2623.8,3.43013]
[1729649001115,0.03373902,2623.9,2623.8,3.43013]
[1729649001279,2.4842008,2624.2,2623.8,4.64567615]
[1729649001478,0.03373909,2623.9,2623.8,3.43013]
[1729649001785,1.6736008,2624.1,2623.8,3.43013]
[1729649002248,0.03374957,2624.0,2623.8,3.43013]
[1729649004763,0.03374957,2624.0,2623.7,6.07162045]
[1729649004764,1.70735037,2624.0,2623.7,6.07162045]
[1729649004993,1.70735037,2624.0,2623.7,8.41554751]
[1729649005196,1.70735037,2624.0,2623.8,3.43013]
[1729649008663,0.03374957,2624.0,2623.8,3.43013]
[1729649008864,2.4842008,2624.2,2623.8,3.43013]
[1729649009079,0.03375156,2623.9,2623.8,3.43013]
[1729649009377,2.4842008,2624.2,2623.8,3.43013]
[1729649009577,0.03375156,2623.9,2623.8,3.43013]
[1729649009788,2.4842008,2624.2,2623.8,3.43013]
[1729649010005,0.03375156,2623.9,2623.8,3.43013]
[1729649010166,2.4842008,2624.2,2623.8,4.24859603]
[1729649010478,2.4842008,2624.2,2623.8,3.43013]
[1729649010680,0.03375212,2624.1,2623.8,3.43013]
[1729649013022,1.6736008,2624.0,2623.7,8.41570751]
[1729649013168,1.6736008,2624.0,2623.7,7.65390751]
[1729649013522,0.03375666,2623.9,2623.7,7.65390751]
[1729649013811,1.6736008,2624.0,2623.7,7.65390751]
[1729649014166,1.6736008,2624.0,2623.7,4.22364751]
[1729649015806,1.6736008,2624.0,2623.7,7.65384751]
[1729649016884,1.6736008,2624.0,2623.7,7.65377751]
[1729649017203,1.6736008,2624.0,2623.7,4.22357751]
[1729649017506,1.6736008,2624.0,2623.7,7.65376751]
[1729649018731,1.6736008,2624.0,2623.7,4.22357751]
[1729649018902,1.6736008,2624.0,2623.7,7.65377751]
[1729649020422,1.6736008,2624.0,2623.8,3.43011]
[1729649021331,1.6736008,2624.0,2623.8,4.22349751]
[1729649021630,1.6736008,2624.0,2623.8,3.43011]
[1729649022392,1.6736008,2624.0,2623.8,4.22349751]
[1729649026543,1.6736008,2624.0,2623.8,0.79338751]
[1729649027035,0.8306,2623.9,2623.8,0.79338751]
[1729649027235,0.8306,2623.9,2623.7,0.79338751]
[1729649027411,0.8306,2623.9,2623.8,0.79338751]
[1729649027611,2.5042008,2623.9,2623.8,0.79338751]
[1729649028309,5.9342008,2623.9,2623.7,0.79338751]
[1729649028611,1.6736008,2623.8,2623.6,0.79338751]
[1729649029401,1.6736008,2623.9,2623.6,4.22368751]
[1729649029546,1.6736008,2623.8,2623.7,0.79338751]
[1729649032621,2.4517008,2623.8,2623.6,0.79338751]
[1729649032836,1.6736008,2623.7,2623.6,0.79338751]
[1729649033224,1.6736008,2623.7,2623.4,4.62063126]
[1729649033225,1.6736008,2623.7,2623.5,0.79338751]
[1729649035664,1.6736008,2623.6,2623.5,0.79338751]
[1729649035963,1.6736008,2623.7,2623.5,0.79338751]
[1729649038067,1.6736008,2623.6,2623.5,0.79338751]
[1729649038547,1.6736008,2623.6,2623.4,0.79338751]
[1729649040771,1.6736008,2623.7,2623.4,0.79338751]
[1729649041267,1.6736008,2623.6,2623.4,0.79338751]
[1729649043760,1.6736008,2623.7,2623.4,0.79338751]
[1729649044412,5.1024508,2624.8,2623.4,0.79338751]
[1729649044413,3.42988,2624.0,2623.5,3.43047]
[1729649044562,1.6736008,2623.9,2623.5,8.44417751]
[1729649044741,1.6736008,2623.9,2623.6,0.79338751]
[1729649045143,2.4517008,2624.0,2623.6,0.79338751]
[1729649045347,1.6736008,2623.9,2623.6,0.79338751]
[1729649045557,1.6736008,2623.9,2623.6,5.0109321]
[1729649049663,1.6736008,2623.8,2623.6,4.22375751]
[1729649049835,1.6736008,2623.8,2623.6,0.79338751]
[1729649050248,1.6736008,2623.8,2623.5,5.01378751]
[1729649050539,1.6736008,2623.8,2623.6,0.79338751]
[1729649051374,1.6736008,2623.8,2623.5,5.01375751]